fUST/lending_fUST_20240919
["ID","MTS","AMOUNT","RATE_DAILY","PERIOD"]
[338574629,1726741850398,-1725.65,0.00016712,2]
[338574630,1726741850407,-740.72,0.00016712,2]
[338574631,1726741850417,-500.0,0.00016712,2]
[338574632,1726741850426,-441.34291603,0.00016712,2]
[338574633,1726741850435,-500.0,0.00016712,2]
[338574634,1726741850445,-1018.6,0.00016712,2]
[338574635,1726741850454,-797.18,0.00016712,2]
[338574636,1726741850463,-1129.9,0.00016712,2]
[338574637,1726741850473,-788.61,0.00016712,2]
[338574638,1726741850482,-500.0,0.00016712,2]
[338574639,1726741850491,-2623.38,0.00016712,2]
[338574640,1726741850501,-635.67,0.00016712,2]
[338574641,1726741850510,-500.0,0.00016712,2]
[338574642,1726741850520,-2041.82,0.00016712,2]
[338574643,1726741850530,-1204.29,0.00016712,2]
[338574644,1726741850539,-500.0,0.00016712,2]
[338574645,1726741850549,-757.25,0.00016712,2]
[338574646,1726741850559,-617.999996,0.00016712,2]
[338574647,1726741850568,-690.23,0.00016712,2]
[338574648,1726741850578,-500.0,0.00016712,2]
[338574649,1726741850587,-500.0,0.00016712,2]
[338574650,1726741850597,-890.88,0.00016712,2]
[338574651,1726741850607,-570.01,0.00016712,2]
[338574652,1726741850618,-1039.89,0.00016712,2]
[338574653,1726741850628,-944.41,0.00016712,2]
[338574654,1726741850641,-500.0,0.00016712,2]
[338574655,1726741850651,-500.0,0.00016712,2]
[338574656,1726741850661,-500.0,0.00016712,2]
[338574657,1726741850673,-500.0,0.00016712,2]
[338574658,1726741850682,-500.0,0.00016712,2]
[338574659,1726741850692,-500.0,0.00016712,2]
[338574660,1726741850701,-500.0,0.00016712,2]
[338574661,1726741850711,-905.13,0.00016712,2]
[338574662,1726741850721,-500.0,0.00016712,2]
[338574663,1726741850731,-500.0,0.00016712,2]
[338574664,1726741850741,-500.0,0.00016712,2]
[338574665,1726741850750,-604.74,0.00016712,2]
[338574666,1726741850761,-500.0,0.00016712,2]
[338574667,1726741850771,-1032.46,0.00016712,2]
[338574668,1726741850780,-1268.37,0.00016712,2]
[338574669,1726741850790,-500.0,0.00016712,2]
[338574670,1726741850799,-500.0,0.00016712,2]
[338574671,1726741850808,-151.0,0.00016712,2]
[338574672,1726741850820,-500.0,0.00016712,2]
[338574673,1726741850829,-500.0,0.00016712,2]
[338574674,1726741850839,-500.0,0.00016712,2]
[338574675,1726741850850,-500.0,0.00016712,2]
[338574676,1726741850859,-710.58,0.00016712,2]
[338574677,1726741850869,-500.0,0.00016712,2]
[338574678,1726741850878,-500.0,0.00016712,2]
[338574679,1726741850888,-1244.06,0.00016712,2]
[338574680,1726741850898,-1101.04,0.00016712,2]
[338574681,1726741850908,-500.0,0.00016712,2]
[338574682,1726741850918,-931.54,0.00016712,2]
[338574683,1726741850928,-500.0,0.00016712,2]
[338574684,1726741850938,-500.0,0.00016712,2]
[338574685,1726741850947,-522.77,0.00016712,2]
[338574686,1726741850957,-500.0,0.00016712,2]
[338574687,1726741850967,-500.0,0.00016712,2]
[338574688,1726741850977,-500.0,0.00016712,2]
[338574689,1726741850986,-151.0,0.00016712,2]
[338574690,1726741850997,-1802.19,0.00016712,2]
[338574691,1726741851007,-500.0,0.00016712,2]
[338574692,1726741851017,-750.91,0.00016712,2]
[338574693,1726741851026,-151.0,0.00016712,2]
[338574694,1726741851036,-500.0,0.00016712,2]
[338574695,1726741851047,-501.24346898,0.00016712,2]
[338574696,1726741851056,-500.0,0.00016712,2]
[338574697,1726741851066,-500.0,0.00016712,2]
[338574698,1726741851076,-327.15999306,0.00016712,2]
[338574699,1726741851085,-742.41,0.00016712,2]
[338574700,1726741851095,-3140.71,0.00016712,2]
[338574701,1726741851104,-507.84,0.00016712,2]
[338574702,1726741851113,-500.0,0.00016712,2]
[338574703,1726741851123,-575.41,0.00016712,2]
[338574704,1726741851132,-718.11,0.00016712,2]
[338574705,1726741851142,-500.0,0.00016712,2]
[338574706,1726741851152,-312.23486903,0.00016712,2]
[338574707,1726741851162,-661.14,0.00016712,2]
[338574708,1726741851174,-719.05,0.00016712,2]
[338574709,1726741851184,-1561.79,0.00016712,2]
[338574710,1726741851194,-500.0,0.00016712,2]
[338574711,1726741851203,-500.0,0.00016712,2]
[338574712,1726741851213,-504.66,0.00016712,2]
[338574713,1726741851224,-500.0,0.00016712,2]
[338574714,1726741851233,-500.0,0.00016712,2]
[338574715,1726741851243,-853.32,0.00016712,2]
[338574716,1726741851253,-500.0,0.00016712,2]
[338574717,1726741851262,-1252.36,0.00016712,2]
[338574718,1726741851272,-500.0,0.00016712,2]
[338574719,1726741851281,-1902.17,0.00016712,2]
[338574720,1726741851291,-798.56,0.00016712,2]
[338574721,1726741851301,-542.454776,0.00016712,2]
[338574722,1726741851314,-920.19,0.00016712,2]
[338574723,1726741851324,-509.46868755,0.00016712,2]
[338574724,1726741851334,-988.11,0.00016712,2]
[338574725,1726741851344,-500.0,0.00016712,2]
[338574726,1726741851354,-542.454776,0.00016712,2]
[338574727,1726741851364,-500.0,0.00016712,2]
[338574728,1726741851374,-1606.04,0.00016712,2]
[338574729,1726741851384,-289.294998,0.00016712,2]
[338574730,1726741851393,-500.0,0.00016712,2]
[338574731,1726741851402,-526.89,0.00016712,2]
[338574732,1726741851412,-500.0,0.00016712,2]
[338574733,1726741851433,-289.294998,0.00016712,2]
[338574734,1726741851442,-500.0,0.00016712,2]
[338574735,1726741851452,-2480.72,0.00016712,2]
[338574736,1726741851462,-500.0,0.00016712,2]
[338574737,1726741851472,-500.50203365,0.00016712,2]
[338574738,1726741851481,-500.0,0.00016712,2]
[338574739,1726741851493,-500.0,0.00016712,2]
[338574740,1726741851502,-500.0,0.00016712,2]
[338574741,1726741851511,-2398.52,0.00016712,2]
[338574742,1726741851521,-515.91,0.00016712,2]
[338574743,1726741851531,-1443.33,0.00016712,2]
[338574744,1726741851540,-501.8688841,0.00016712,2]
[338574745,1726741851550,-812.01,0.00016712,2]
[338574746,1726741851560,-584.56,0.00016712,2]
[338574747,1726741851570,-500.0,0.00016712,2]
[338574748,1726741851580,-500.0,0.00016712,2]
[338574749,1726741851590,-933.15,0.00016712,2]
[338574750,1726741851600,-952.23775,0.00016712,2]
[338574751,1726741851609,-979.58,0.00016712,2]
[338574752,1726741851619,-500.0,0.00016712,2]
[338574753,1726741851628,-952.23775,0.00016712,2]
[338574754,1726741851638,-500.0,0.00016712,2]
[338574755,1726741851647,-500.0,0.00016712,2]
[338574756,1726741851657,-206.113368,0.00016712,2]
[338574757,1726741851673,-500.0,0.00016712,2]
[338574758,1726741851682,-1080.95,0.00016712,2]
[338574759,1726741851691,-2173.03,0.00016712,2]
[338574760,1726741851700,-206.113368,0.00016712,2]
[338574761,1726741851710,-500.0,0.00016712,2]
[338574762,1726741851719,-500.0,0.00016712,2]
[338574763,1726741851728,-752.600615,0.00016712,2]
[338574764,1726741851737,-3609.099723,0.00016712,2]
[338574765,1726741851746,-500.0,0.00016712,2]
[338574766,1726741851754,-500.0,0.00016712,2]
[338574767,1726741851764,-500.0,0.00016712,2]
[338574768,1726741851774,-151.0,0.00016712,2]
[338574769,1726741851783,-852.43886,0.00016712,2]
[338574770,1726741851793,-752.600615,0.00016712,2]
[338574771,1726741851802,-3609.099723,0.00016712,2]
[338574772,1726741851812,-1514.93,0.00016712,2]
[338574773,1726741851821,-151.0,0.00016712,2]
[338574774,1726741851831,-500.0,0.00016712,2]
[338574775,1726741851841,-717.6,0.00016712,2]
[338574776,1726741851852,-500.0,0.00016712,2]
[338574777,1726741851861,-852.43886,0.00016712,2]
[338574778,1726741851871,-170.789961,0.00016712,2]
[338574779,1726741851880,-500.0,0.00016712,2]
[338574780,1726741851890,-263.199991,0.00016712,2]
[338574781,1726741851899,-1289.4543,0.00016712,2]
[338574782,1726741851909,-170.789961,0.00016712,2]
[338574783,1726741851920,-500.0,0.00016712,2]
[338574784,1726741851930,-263.199991,0.00016712,2]
[338574785,1726741851940,-855.8,0.00016712,2]
[338574786,1726741851949,-1289.4543,0.00016712,2]
[338574787,1726741851959,-500.0,0.00016712,2]
[338574788,1726741851969,-151.0,0.00016712,2]
[338574789,1726741851979,-500.0,0.00016712,2]
[338574790,1726741851988,-1074.38,0.00016712,2]
[338574791,1726741851998,-500.0,0.00016712,2]
[338574792,1726741852007,-500.0,0.00016712,2]
[338574793,1726741852018,-1273.484446,0.00016712,2]
[338574794,1726741852027,-500.0,0.00016712,2]
[338574795,1726741852037,-500.0,0.00016712,2]
[338574796,1726741852047,-1273.484446,0.00016712,2]
[338574797,1726741852057,-880.96,0.00016712,2]
[338574798,1726741852066,-500.0,0.00016712,2]
[338574799,1726741852076,-151.0,0.00016712,2]
[338574800,1726741852086,-333.67,0.00016712,2]
[338574801,1726741852095,-987.4,0.00016712,2]
[338574802,1726741852104,-500.0,0.00016712,2]
[338574803,1726741852114,-500.0,0.00016712,2]
[338574804,1726741852124,-151.0,0.00016712,2]
[338574805,1726741852133,-1503.33,0.00016712,2]
[338574806,1726741852143,-679.83,0.00016712,2]
[338574807,1726741852152,-1146.89,0.00016712,2]
[338574808,1726741852161,-598.610571,0.00016712,2]
[338574809,1726741852175,-500.0,0.00016712,2]
[338574810,1726741852185,-852.72,0.00016712,2]
[338574811,1726741852195,-598.610571,0.00016712,2]
[338574812,1726741852204,-1991.96,0.00016712,2]
[338574813,1726741852213,-500.0,0.00016712,2]
[338574814,1726741852223,-158.97031663,0.00016712,2]
[338574815,1726741852233,-584.42,0.00016712,2]
[338574816,1726741852243,-500.0,0.00016712,2]
[338574817,1726741852253,-501.96747097,0.00016712,2]
[338574818,1726741852263,-1351.2,0.00016712,2]
[338574819,1726741852274,-889.42,0.00016712,2]
[338574820,1726741852283,-1827.19,0.00016712,2]
[338574821,1726741852293,-984.52,0.00016712,2]
[338574822,1726741852303,-500.0,0.00016712,2]
[338574823,1726741852316,-500.0,0.00016712,2]
[338574824,1726741852325,-500.0,0.00016712,2]
[338574825,1726741852335,-830.48,0.00016712,2]
[338574826,1726741852344,-500.0,0.00016712,2]
[338574827,1726741852355,-500.0,0.00016712,2]
[338574828,1726741852364,-455.68785366,0.00016712,2]
[338574829,1726741852374,-522.132037,0.00016712,2]
[338574830,1726741852659,-500.0,0.00016712,2]
[338574831,1726741852672,-522.132037,0.00016712,2]
[338574832,1726741852682,-500.0,0.00016712,2]
[338574833,1726741852692,-500.0,0.00016712,2]
[338574834,1726741852702,-500.0,0.00016712,2]
[338574835,1726741852712,-504.95,0.00016712,2]
[338574836,1726741852721,-500.0,0.00016712,2]
[338574837,1726741852731,-509.480479,0.00016712,2]
[338574838,1726741852741,-500.0,0.00016712,2]
[338574839,1726741852751,-500.0,0.00016712,2]
[338574840,1726741852760,-151.0,0.00016712,2]
[338574841,1726741852770,-151.0,0.00016712,2]
[338574842,1726741852779,-509.480479,0.00016712,2]
[338574843,1726741852789,-151.0,0.00016712,2]
[338574844,1726741852800,-151.0,0.00016712,2]
[338574845,1726741852809,-500.0,0.00016712,2]
[338574846,1726741852818,-500.0,0.00016712,2]
[338574847,1726741852828,-151.0,0.00016712,2]
[338574848,1726741852838,-151.0,0.00016712,2]
[338574849,1726741852848,-500.0,0.00016712,2]
[338574850,1726741852859,-500.0,0.00016712,2]
[338574851,1726741852868,-151.0,0.00016712,2]
[338574852,1726741852878,-151.0,0.00016712,2]
[338574853,1726741852888,-151.0,0.00016712,2]
[338574854,1726741852898,-500.0,0.00016712,2]
[338574855,1726741852910,-500.0,0.00016712,2]
[338574856,1726741852923,-500.0,0.00016712,2]
[338574857,1726741852935,-562.08,0.00016712,2]
[338574858,1726741852946,-500.0,0.00016712,2]
[338574859,1726741852956,-500.0,0.00016712,2]
[338574860,1726741852965,-500.0,0.00016712,2]
[338574861,1726741852975,-2080.917022,0.00016712,2]
[338574862,1726741852984,-151.0,0.00016712,2]
[338574863,1726741852994,-151.0,0.00016712,2]
[338574864,1726741853003,-500.0,0.00016712,2]
[338574865,1726741853013,-1787.17,0.00016712,2]
[338574866,1726741853023,-2080.917022,0.00016712,2]
[338574867,1726741853033,-500.0,0.00016712,2]
[338574868,1726741853043,-500.0,0.00016712,2]
[338574869,1726741853052,-500.75781459,0.00016712,2]
[338574870,1726741853062,-3769.21,0.00016712,2]
[338574871,1726741853072,-500.0,0.00016712,2]
[338574872,1726741853081,-500.0,0.00016712,2]
[338574873,1726741853091,-668.88,0.00016712,2]
[338574874,1726741853101,-500.0,0.00016712,2]
[338574875,1726741853110,-844.05,0.00016712,2]
[338574876,1726741853121,-500.0,0.00016712,2]
[338574877,1726741853132,-500.0,0.00016712,2]
[338574878,1726741853143,-500.0,0.00016712,2]
[338574879,1726741853153,-592.4,0.00016712,2]
[338574880,1726741853163,-500.0,0.00016712,2]
[338574881,1726741853173,-500.0,0.00016712,2]
[338574882,1726741853182,-500.0,0.00016712,2]
[338574883,1726741853193,-500.0,0.00016712,2]
[338574884,1726741853203,-655.86,0.00016712,2]
[338574885,1726741853212,-894.18,0.00016712,2]
[338574886,1726741853222,-972.24,0.00016712,2]
[338574887,1726741853232,-151.0,0.00016712,2]
[338574888,1726741853246,-151.0,0.00016712,2]
[338574889,1726741853257,-151.0,0.00016712,2]
[338574890,1726741853267,-151.0,0.00016712,2]
[338574891,1726741853277,-3003.323229,0.00016712,2]
[338574892,1726741853287,-3003.323229,0.00016712,2]
[338574893,1726741853296,-3003.323229,0.00016712,2]
[338574894,1726741853306,-500.0,0.00016712,2]
[338574895,1726741853319,-3003.323229,0.00016712,2]
[338574896,1726741853328,-151.0,0.00016712,2]
[338574897,1726741853338,-151.0,0.00016712,2]
[338574898,1726741853348,-500.0,0.00016712,2]
[338574899,1726741853357,-500.0,0.00016712,2]
[338574900,1726741853367,-1656.88,0.00016712,2]
[338574901,1726741853376,-579.46,0.00016712,2]
[338574902,1726741853389,-500.0,0.00016712,2]
[338574903,1726741853399,-563.95,0.00016712,2]
[338574904,1726741853409,-686.546402,0.00016712,2]
[338574905,1726741853420,-151.0,0.00016712,2]
[338574906,1726741853430,-151.0,0.00016712,2]
[338574907,1726741853439,-686.546402,0.00016712,2]
[338574908,1726741853450,-489.454021,0.00016712,2]
[338574909,1726741853459,-489.454021,0.00016712,2]
[338574910,1726741853469,-500.0,0.00016712,2]
[338574911,1726741853478,-847.09,0.00016712,2]
[338574912,1726741853487,-686.546402,0.00016712,2]
[338574913,1726741853497,-686.546402,0.00016712,2]
[338574914,1726741853506,-489.454021,0.00016712,2]
[338574915,1726741853515,-846.84754,0.00016712,2]
[338574916,1726741853525,-489.454021,0.00016712,2]
[338574917,1726741853534,-558.17,0.00016712,2]
[338574918,1726741853544,-500.0,0.00016712,2]
[338574919,1726741853554,-846.84754,0.00016712,2]
[338574920,1726741853563,-500.0,0.00016712,2]
[338574921,1726741853573,-500.0,0.00016712,2]
[338574922,1726741853582,-500.0,0.00016712,2]
[338574923,1726741853591,-500.0,0.00016712,2]
[338574924,1726741853601,-500.0,0.00016712,2]
[338574925,1726741853611,-605.22271873,0.00016712,2]
[338574926,1726741853620,-500.0,0.00016712,2]
[338574927,1726741853630,-500.0,0.00016712,2]
[338574928,1726741853639,-151.0,0.00016712,2]
[338574929,1726741853649,-500.0,0.00016712,2]
[338574930,1726741853658,-500.0,0.00016712,2]
[338574931,1726741853667,-151.0,0.00016712,2]
[338574932,1726741853677,-500.0,0.00016712,2]
[338574933,1726741853687,-500.0,0.00016712,2]
[338574934,1726741853697,-156.166241,0.00016712,2]
[338574935,1726741853706,-500.0,0.00016712,2]
[338574936,1726741853715,-3353.97,0.00016712,2]
[338574937,1726741853725,-926.37,0.00016712,2]
[338574938,1726741853734,-151.0,0.00016712,2]
[338574939,1726741853744,-500.0,0.00016712,2]
[338574940,1726741853754,-549.98,0.00016712,2]
[338574941,1726741853764,-916.46,0.00016712,2]
[338574942,1726741853774,-151.0,0.00016712,2]
[338574943,1726741853783,-852.43,0.00016712,2]
[338574944,1726741853793,-500.0,0.00016712,2]
[338574945,1726741853802,-368.966285,0.00016712,2]
[338574946,1726741853812,-1381.29,0.00016712,2]
[338574947,1726741853822,-500.0,0.00016712,2]
[338574948,1726741853831,-681.01,0.00016712,2]
[338574949,1726741853840,-500.0,0.00016712,2]
[338574950,1726741853851,-368.966285,0.00016712,2]
[338574951,1726741853860,-66423.35,0.00016712,2]
[338574952,1726741853869,-500.0,0.00016712,2]
[338574953,1726741853878,-500.0,0.00016712,2]
[338574954,1726741853888,-721.85,0.00016712,2]
[338574955,1726741853896,-1018.51,0.00016712,2]
[338574956,1726741853906,-500.32995546,0.00016712,2]
[338574957,1726741853915,-183.975199,0.00016712,2]
[338574958,1726741853925,-500.0,0.00016712,2]
[338574959,1726741853934,-151.0,0.00016712,2]
[338574960,1726741853943,-500.0,0.00016712,2]
[338574961,1726741853953,-500.0,0.00016712,2]
[338574962,1726741853962,-500.0,0.00016712,2]
[338574963,1726741853972,-500.0,0.00016712,2]
[338574964,1726741853982,-7969.23,0.00016712,2]
[338574965,1726741853992,-500.0,0.00016712,2]
[338574966,1726741854002,-183.975199,0.00016712,2]
[338574967,1726741854012,-648.14497081,0.00016712,2]
[338574968,1726741854021,-1444.82,0.00016712,2]
[338574969,1726741854031,-500.0,0.00016712,2]
[338574970,1726741854040,-849.76,0.00016712,2]
[338574971,1726741854050,-530.96,0.00016712,2]
[338574972,1726741854059,-151.0,0.00016712,2]
[338574973,1726741854068,-151.0,0.00016712,2]
[338574974,1726741854078,-500.0,0.00016712,2]
[338574975,1726741854088,-500.0,0.00016712,2]
[338574976,1726741854097,-500.0,0.00016712,2]
[338574977,1726741854106,-500.0,0.00016712,2]
[338574978,1726741854115,-500.0,0.00016712,2]
[338574979,1726741854125,-500.0,0.00016712,2]
[338574980,1726741854134,-918.27,0.00016712,2]
[338574981,1726741854144,-500.0,0.00016712,2]
[338574982,1726741854153,-194.0277688,0.00016973,2]
[338574983,1726741854162,-150.0,0.00016973,2]
[338574984,1726741854173,-170.937162,0.00016976,2]
[338574985,1726741854182,-28169.89956944,0.00016986,5]
[338574986,1726741854191,-6953.07216708,0.00016986,5]
[338574987,1726741854199,-500.0,0.00016986,2]
[338574988,1726741854209,-500.0,0.00016986,2]
[338574989,1726741854218,-500.0,0.00016986,2]
[338574990,1726741854227,-500.0,0.00016986,2]
[338574991,1726741854236,-500.0,0.00016986,2]
[338574992,1726741854245,-500.0,0.00016986,2]
[338574993,1726741854254,-500.0,0.00016986,2]
[338574994,1726741854263,-500.0,0.00016986,2]
[338574995,1726741854273,-492.19280841,0.00016986,2]
[338574996,1726741854282,-1125.79,0.00016986,2]
[338574997,1726741854292,-500.0,0.00016986,2]
[338574998,1726741854302,-956.93,0.00016986,2]
[338574999,1726741854313,-500.0,0.00016986,2]
[338575000,1726741854322,-1123.64,0.00016986,2]
[338575001,1726741854331,-500.0,0.00016986,2]
[338575002,1726741854340,-500.0,0.00016986,2]
[338575003,1726741854350,-1251.6,0.00016986,2]
[338575004,1726741854361,-559.76,0.00016986,2]
[338575005,1726741854370,-500.0,0.00016986,2]
[338575006,1726741854379,-830.69,0.00016986,2]
[338575007,1726741854389,-500.0,0.00016986,2]
[338575008,1726741854398,-594.78,0.00016986,2]
[338575009,1726741854409,-500.0,0.00016986,2]
[338575010,1726741854418,-500.0,0.00016986,2]
[338575011,1726741854427,-500.0,0.00016986,2]
[338575012,1726741854436,-777.96,0.00016986,2]
[338575013,1726741854445,-500.0,0.00016986,2]
[338575014,1726741854455,-500.0,0.00016986,2]
[338575015,1726741854464,-500.0,0.00016986,2]
[338575016,1726741854473,-500.0,0.00016986,2]
[338575017,1726741854482,-530.41,0.00016986,2]
[338575018,1726741854492,-1426.88,0.00016986,2]
[338575019,1726741854501,-500.0,0.00016986,2]
[338575020,1726741854512,-500.0,0.00016986,2]
[338575021,1726741854523,-500.0,0.00016986,2]
[338575022,1726741854534,-500.0,0.00016986,2]
[338575023,1726741854545,-500.0,0.00016986,2]
[338575024,1726741854555,-1299.46,0.00016986,2]
[338575025,1726741854564,-500.0,0.00016986,2]
[338575026,1726741854574,-500.0,0.00016986,2]
[338575027,1726741854583,-500.0,0.00016986,2]
[338575028,1726741854592,-500.0,0.00016986,2]
[338575029,1726741854601,-207.7,0.00016986,2]
[338575030,1726741854610,-500.0,0.00016986,2]
[338575031,1726741854620,-524.74,0.00016986,2]
[338575032,1726741854629,-500.0,0.00016986,2]
[338575033,1726741854638,-837.47,0.00016986,2]
[338575034,1726741854647,-500.0,0.00016986,2]
[338575035,1726741854657,-1233.33,0.00016986,2]
[338575036,1726741854667,-658.62,0.00016986,2]
[338575037,1726741854676,-500.0,0.00016986,2]
[338575038,1726741854685,-500.0,0.00016986,2]
[338575039,1726741854695,-671.94,0.00016986,2]
[338575040,1726741854704,-500.0,0.00016986,2]
[338575041,1726741854714,-500.0,0.00016986,2]
[338575042,1726741854723,-628.14,0.00016986,2]
[338575043,1726741854732,-500.0,0.00016986,2]
[338575044,1726741854741,-559.95,0.00016986,2]
[338575045,1726741854751,-500.0,0.00016986,2]
[338575046,1726741854760,-500.0,0.00016986,2]
[338575047,1726741854769,-500.0,0.00016986,2]
[338575048,1726741854778,-500.0,0.00016986,2]
[338575049,1726741854788,-841.34,0.00016986,2]
[338575050,1726741854798,-500.0,0.00016986,2]
[338575051,1726741854808,-445.67462593,0.00016986,2]
[338575052,1726741854817,-500.0,0.00016986,2]
[338575053,1726741854827,-500.0,0.00016986,2]
[338575054,1726741854836,-500.0,0.00016986,2]
[338575055,1726741854846,-541.34807489,0.00016986,2]
[338575056,1726741854855,-500.0,0.00016986,2]
[338575057,1726741854865,-500.0,0.00016986,2]
[338575058,1726741854874,-801.89,0.00016986,2]
[338575059,1726741854883,-500.0,0.00016986,2]
[338575060,1726741854892,-1086.39,0.00016986,2]
[338575061,1726741854901,-737.84,0.00016986,2]
[338575062,1726741854910,-726.59,0.00016986,2]
[338575063,1726741854922,-229.82508824,0.00016986,2]
[338575064,1726741854939,-501.44804604,0.00016986,2]
[338575065,1726741854949,-500.0,0.00016986,2]
[338575066,1726741854958,-500.0,0.00016986,2]
[338575067,1726741854967,-500.0,0.00016986,2]
[338575068,1726741854976,-500.0,0.00016986,2]
[338575069,1726741854986,-500.0,0.00016986,2]
[338575070,1726741854995,-500.0,0.00016986,2]
[338575071,1726741855004,-500.0,0.00016986,2]
[338575072,1726741855072,-500.0,0.00016986,2]
[338575073,1726741855081,-840.56,0.00016986,2]
[338575074,1726741855091,-500.0,0.00016986,2]
[338575075,1726741855100,-535.21,0.00016986,2]
[338575076,1726741855109,-737.97,0.00016986,2]
[338575077,1726741855118,-500.0,0.00016986,2]
[338575078,1726741855127,-500.0,0.00016986,2]
[338575079,1726741855137,-500.0,0.00016986,2]
[338575080,1726741855146,-657.13,0.00016986,2]
[338575081,1726741855156,-1488.61,0.00016986,2]
[338575082,1726741855165,-672.03,0.00016986,2]
[338575083,1726741855176,-500.0,0.00016986,2]
[338575084,1726741855185,-500.0,0.00016986,2]
[338575085,1726741855194,-500.0,0.00016986,2]
[338575086,1726741855203,-500.0,0.00016986,2]
[338575087,1726741855212,-500.0,0.00016986,2]
[338575088,1726741855222,-1728.12,0.00016986,2]
[338575089,1726741855231,-500.0,0.00016986,2]
[338575090,1726741855241,-500.0,0.00016986,2]
[338575091,1726741855250,-677.57,0.00016986,2]
[338575092,1726741855260,-500.0,0.00016986,2]
[338575093,1726741855270,-500.0,0.00016986,2]
[338575094,1726741855279,-500.0,0.00016986,2]
[338575095,1726741855290,-500.0,0.00016986,2]
[338575096,1726741855300,-500.0,0.00016986,2]
[338575097,1726741855311,-500.0,0.00016986,2]
[338575098,1726741855321,-539.55,0.00016986,2]
[338575099,1726741855331,-500.0,0.00016986,2]
[338575100,1726741855341,-500.0,0.00016986,2]
[338575101,1726741855351,-500.0,0.00016986,2]
[338575102,1726741855361,-500.0,0.00016986,2]
[338575103,1726741855373,-500.0,0.00016986,2]
[338575104,1726741855384,-214.20101914,0.00016986,2]
[338575105,1726741855413,-285.79898086,0.00016986,2]
[338575106,1726741855435,-709.83,0.00016986,2]
[338575107,1726741855445,-246.12234611,0.00016986,2]
[338575108,1726741855457,-253.87765389,0.00016986,2]
[338575109,1726741855473,-500.0,0.00016986,2]
[338575110,1726741855483,-500.0,0.00016986,2]
[338575111,1726741855493,-500.0,0.00016986,2]
[338575112,1726741855503,-500.0,0.00016986,2]
[338575113,1726741855512,-500.0,0.00016986,2]
[338575114,1726741855522,-851.49,0.00016986,2]
[338575115,1726741855532,-1911.82,0.00016986,2]
[338575116,1726741855541,-500.0,0.00016986,2]
[338575117,1726741855551,-500.0,0.00016986,2]
[338575118,1726741855561,-500.0,0.00016986,2]
[338575119,1726741855571,-500.0,0.00016986,2]
[338575120,1726741855581,-500.0,0.00016986,2]
[338575121,1726741855592,-500.0,0.00016986,2]
[338575122,1726741855603,-500.0,0.00016986,2]
[338575123,1726741855613,-500.0,0.00016986,2]
[338575124,1726741855624,-500.0,0.00016986,2]
[338575125,1726741855635,-1204.29,0.00016986,2]
[338575126,1726741855645,-500.0,0.00016986,2]
[338575127,1726741855655,-193.75855794,0.00016986,2]
[338575128,1726741855665,-500.0,0.00016986,2]